bitfinex/quotes_SOLUSD_20241028
["timestamp","ask_amount","ask_price","bid_price","bid_amount"]
[1730108228755,0.12549,176.74,176.71,11.06744219]
[1730108229741,0.12549,176.74,176.71,16.72634219]
[1730108230048,32.90354219,176.79,176.73,11.06744219]
[1730108230235,32.90354219,176.79,176.74,11.06744219]
[1730108230834,0.12549,176.78,176.74,11.06744219]
[1730108231242,20.12549,176.78,176.74,16.72544219]
[1730108232052,31.19293219,176.78,176.74,5.658]
[1730108232657,36.84973219,176.78,176.74,5.658]
[1730108233364,36.84973219,176.78,176.73,11.06744219]
[1730108233662,36.84973219,176.78,176.71,14.1474]
[1730108233663,0.12549,176.74,176.71,19.8063]
[1730108233954,0.12549,176.74,176.71,14.1474]
[1730108234931,30.12549,176.74,176.71,14.1474]
[1730108236758,30.12549,176.74,176.67,19.8108]
[1730108236959,30.12549,176.74,176.7,11.06744219]
[1730108237663,41.19293219,176.74,176.7,11.06744219]
[1730108238951,41.19293219,176.74,176.7,16.72644219]
[1730108240262,41.19293219,176.74,176.7,30.87464219]
[1730108240862,41.19293219,176.74,176.69,11.06744219]
[1730108242468,41.19293219,176.74,176.7,5.6593]
[1730108245467,0.12549,176.72,176.69,19.8082]
[1730108246550,0.12549,176.7,176.66,11.06744219]
[1730108247551,0.12549,176.7,176.66,16.72774219]
[1730108247888,20.0,176.72,176.69,11.06744219]
[1730108248372,0.12549,176.71,176.68,11.06744219]
[1730108248559,30.12549,176.71,176.68,11.06744219]
[1730108248872,30.12549,176.71,176.68,16.72734219]
[1730108249053,0.12549,176.71,176.68,16.72734219]
[1730108249773,70.0,176.75,176.7,11.06744219]
[1730108249774,20.0,176.75,176.7,11.06744219]
[1730108249951,16.4535,176.77,176.73,11.06744219]
[1730108250151,0.12549,176.76,176.73,11.06744219]
[1730108250664,0.12549,176.76,176.72,11.06744219]
[1730108251075,5.78279,176.76,176.72,11.06744219]
[1730108251672,16.85023219,176.76,176.71,16.72604219]
[1730108252651,16.85023219,176.76,176.71,11.06744219]
[1730108252987,31.19293219,176.74,176.7,14.1475]
[1730108253975,0.12549,176.72,176.7,14.1475]
[1730108255066,0.12549,176.72,176.7,19.8068]
[1730108255459,0.12549,176.72,176.7,30.87424219]
[1730108255661,0.12549,176.73,176.7,30.87424219]
[1730108256266,20.0,176.75,176.72,11.06744219]
[1730108256651,0.12549,176.74,176.73,11.06744219]
[1730108256854,30.12549,176.74,176.73,11.06744219]
[1730108257075,30.12549,176.74,176.72,11.06744219]
[1730108257274,0.12549,176.74,176.72,11.06744219]
[1730108257787,0.12549,176.74,176.71,11.06744219]
[1730108260567,0.12549,176.74,176.71,16.72624219]
[1730108264967,0.12549,176.74,176.72,11.06744219]
[1730108265466,25.78289,176.76,176.72,11.06744219]
[1730108265981,25.78289,176.76,176.71,11.06744219]
[1730108266477,36.85033219,176.76,176.71,11.06744219]
[1730108268879,36.85033219,176.76,176.71,16.72634219]
[1730108271386,25.78289,176.76,176.72,11.06744219]
[1730108272160,0.12549,176.74,176.71,11.06744219]
[1730108275769,0.12549,176.74,176.71,11.06744219]
[1730108275973,0.12549,176.74,176.71,8.56744219]
[1730108280163,70.0,176.8,176.73,11.06744219]
[1730108280368,4.24458616,176.79,176.77,11.06744219]
[1730108280685,0.12549,176.77,176.71,15.3146]
[1730108281160,27.3718,176.81,176.71,15.3146]
[1730108281364,27.3718,176.81,176.78,11.06744219]
[1730108281567,30.12549,176.79,176.78,11.06744219]
[1730108282281,0.12549,176.8,176.78,11.06744219]
[1730108282896,20.0,176.83,176.79,11.06744219]
[1730108283071,4.24120953,176.82,176.8,11.06744219]
[1730108283275,0.12549,176.83,176.79,11.06744219]
[1730108283579,0.12549,176.81,176.78,25.20924219]
[1730108284090,0.12549,176.82,176.78,30.86584219]
[1730108284683,30.12549,176.82,176.78,30.86584219]
[1730108286696,11.19293219,176.8,176.75,11.06744219]
[1730108287578,11.19293219,176.8,176.75,16.72484219]
[1730108287989,11.19293219,176.8,176.75,30.86904219]
[1730108288576,16.84903219,176.8,176.75,30.86904219]
[1730108289090,0.12549,176.78,176.75,30.86904219]
[1730108292379,0.12549,176.79,176.76,11.06744219]
[1730108292583,30.0,176.79,176.78,11.06744219]
[1730108293681,0.12549,176.79,176.78,11.06744219]
[1730108296182,0.12549,176.79,176.78,16.72414219]
[1730108297097,6.1887,176.86,176.78,30.86594219]
[1730108297282,85.8168,176.89,176.84,11.06744219]
[1730108297475,30.0,176.85,176.79,20.1]
[1730108297672,30.0,176.85,176.81,0.1]
[1730108298014,30.0,176.85,176.81,5.6557]
[1730108298177,0.12549,176.89,176.81,19.7951]
[1730108298510,0.12549,176.89,176.86,11.06744219]
[1730108298678,81.19293219,176.89,176.81,19.7951]
[1730108298877,0.12549,176.85,176.82,11.06744219]
[1730108299289,21.34277059,176.9,176.84,11.06744219]
[1730108299503,15.68957059,176.9,176.86,11.06744219]
[1730108299797,0.12549,176.89,176.86,11.06744219]
[1730108300781,0.12549,176.89,176.86,16.72154219]
[1730108300997,0.12549,176.89,176.86,25.20234219]
[1730108301594,0.12549,176.89,176.86,14.1349]
[1730108301777,0.12549,176.89,176.85,11.06744219]
[1730108303401,0.12549,176.89,176.86,11.06744219]
[1730108304302,0.12549,176.89,176.88,11.06744219]
[1730108305279,5.6523,176.92,176.88,11.06744219]
[1730108305703,5.6523,176.92,176.89,11.06744219]
[1730108305887,30.0,176.9,176.89,11.06744219]
[1730108306093,30.12549,176.9,176.89,11.06744219]
[1730108306802,0.12549,176.9,176.89,11.06744219]
[1730108309214,0.12549,176.9,176.88,11.06744219]
[1730108311391,0.12549,176.89,176.86,19.7892]
[1730108311699,5.77889,176.89,176.85,11.06744219]
[1730108312594,5.77889,176.89,176.86,11.8581499]
[1730108312792,5.77889,176.89,176.85,11.06744219]
[1730108316201,5.77889,176.89,176.85,16.72184219]
[1730108317497,0.12549,176.89,176.87,11.06744219]
[1730108320700,0.12549,176.89,176.86,16.72154219]
[1730108321299,30.12549,176.89,176.86,16.72154219]
[1730108325417,30.12549,176.89,176.86,11.06744219]
[1730108325613,46.84613219,176.89,176.81,14.1388]
[1730108325928,0.12549,176.86,176.81,14.1388]
[1730108326221,0.12549,176.86,176.82,11.06744219]
[1730108326828,11.19293219,176.85,176.79,5.6564]
[1730108327004,11.19293219,176.85,176.8,11.06744219]
[1730108327617,16.84753219,176.85,176.8,16.72334219]
[1730108329212,16.84753219,176.85,176.79,11.06744219]
[1730108329502,16.84753219,176.85,176.79,25.20844219]
[1730108329922,0.12549,176.83,176.79,25.20844219]
[1730108330623,0.12549,176.83,176.79,30.86484219]
[1730108331033,5.78059,176.83,176.79,30.86484219]
[1730108331731,5.78059,176.83,176.78,11.06744219]
[1730108331732,16.84823219,176.83,176.78,11.06744219]
[1730108332101,0.12549,176.81,176.77,16.72444219]
[1730108332432,0.12549,176.81,176.77,11.06744219]
[1730108334021,0.12549,176.81,176.73,19.8041]
[1730108334235,0.12549,176.81,176.77,11.06744219]
[1730108335426,0.12549,176.81,176.78,5.6567]
[1730108336534,5.78139,176.81,176.77,19.7993]
[1730108337234,16.72264219,176.83,176.78,11.06744219]
[1730108337834,0.12549,176.82,176.79,5.6564]
[1730108340221,0.12549,176.82,176.79,11.06744219]
[1730108340432,30.0,176.86,176.81,11.06744219]
[1730108340610,30.0,176.86,176.83,11.06744219]
[1730108340815,24.78086236,176.84,176.82,11.06744219]
[1730108341535,0.12549,176.86,176.82,11.06744219]
[1730108341911,0.12549,176.86,176.82,16.72254219]
[1730108343911,0.12549,176.86,176.83,11.06744219]
[1730108344312,0.12549,176.87,176.84,11.06744219]
[1730108344637,20.0,176.9,176.86,11.06744219]
[1730108344836,15.926,176.91,176.88,11.06744219]
[1730108345013,0.12549,176.9,176.88,11.06744219]
[1730108346324,20.0,176.92,176.89,11.06744219]
[1730108346517,20.0,176.92,176.88,11.06744219]
[1730108347123,0.12549,176.91,176.88,11.06744219]
[1730108349318,27.2916,176.98,176.9,11.06744219]
[1730108349525,4.22796431,176.97,176.94,11.06744219]
[1730108349842,4.22796431,176.96,176.95,11.06744219]
[1730108350830,0.12549,176.97,176.95,11.06744219]
[1730108351027,0.12549,176.97,176.96,11.06744219]
[1730108351213,4.3521901,176.97,176.96,11.06744219]
[1730108351616,4.3521901,176.97,176.95,11.06744219]
[1730108351826,0.12549,176.97,176.95,11.06744219]
[1730108355341,0.12549,176.97,176.96,11.06744219]
[1730108356147,0.12549,176.97,176.96,10.74836859]
[1730108356849,0.12549,176.97,176.95,11.06744219]
[1730108358747,0.12549,176.97,176.96,11.06744219]
[1730108362944,20.0,176.98,176.95,11.06744219]
[1730108364052,5.6506,176.98,176.95,11.06744219]
[1730108371557,5.6506,176.98,176.94,11.06744219]
[1730108376854,5.6506,176.98,176.92,19.7825]
[1730108377062,5.6506,176.98,176.94,11.06744219]
[1730108379339,5.65,176.99,176.96,11.06744219]
[1730108379538,5.65,176.99,176.97,11.06744219]
[1730108379737,30.12549,176.98,176.97,11.06744219]
[1730108380150,30.12549,176.98,176.96,11.06744219]
[1730108380666,0.12549,176.98,176.96,11.06744219]
[1730108382846,0.12549,176.98,176.97,11.06744219]
[1730108383568,0.12549,176.98,176.96,11.06744219]
[1730108389465,0.12549,176.98,176.97,11.06744219]
[1730108389763,4.35467366,176.98,176.97,11.06744219]
[1730108390666,0.12549,176.97,176.93,5.6519]
[1730108390844,0.12549,176.97,176.95,11.06744219]
[1730108394474,9.4426273,177.0,176.96,11.06744219]
[1730108394773,4.23697875,176.99,176.98,11.06744219]
[1730108395072,4.36246875,176.99,176.98,11.06744219]
[1730108395366,4.23697875,176.99,176.98,16.71774219]
[1730108396848,4.23827699,176.99,176.98,16.71774219]
[1730108397049,4.23827699,176.99,176.98,11.06744219]
[1730108397251,7.2481972,177.06,176.98,11.16744219]
[1730108397477,9.88502302,177.05,177.01,11.06744219]
[1730108397773,4.23692302,177.04,177.01,11.06744219]
[1730108397968,4.23692302,177.03,177.01,11.06744219]
[1730108398176,4.23692302,177.02,177.01,11.06744219]
[1730108398676,4.23692302,177.02,177.01,16.71674219]
[1730108399274,4.23692302,177.02,177.01,5.6493]
[1730108399480,4.23692302,177.02,176.94,0.1]
[1730108399481,0.12549,177.01,176.94,0.1]
[1730108399781,4.23692302,177.0,176.97,11.06744219]
[1730108399947,0.12549,177.01,176.97,11.06744219]
[1730108400150,4.2349303,177.0,176.98,11.06744219]
[1730108400350,0.12549,177.01,176.98,11.06744219]
[1730108400547,0.12549,177.01,176.99,11.06744219]
[1730108400774,4.23497856,177.0,176.99,11.06744219]
[1730108401955,4.23497856,177.0,176.98,11.06744219]
[1730108402175,0.12549,177.01,176.98,11.06744219]
[1730108402375,4.23373508,177.0,176.98,11.06744219]
[1730108402566,0.12549,177.01,176.98,11.06744219]
[1730108402875,4.23373543,177.0,176.98,11.06744219]
[1730108403076,0.12549,177.01,176.98,11.06744219]
[1730108403381,4.23374812,177.0,176.98,11.06744219]
[1730108403566,0.12549,177.01,176.98,16.71774219]
[1730108403768,4.23324072,177.0,176.98,16.71774219]
[1730108404080,0.12549,177.01,176.98,16.71774219]
[1730108404381,4.23326819,177.0,176.98,16.71774219]
[1730108404678,0.12549,177.01,176.98,16.71774219]
[1730108404979,4.23282947,177.0,176.98,16.71774219]
[1730108405182,0.12549,177.01,176.98,16.71774219]
[1730108405359,4.23250374,177.0,176.98,16.71774219]
[1730108405563,0.12549,177.01,176.98,16.71774219]
[1730108405759,4.23250408,177.0,176.98,16.71774219]
[1730108405957,0.12549,177.01,176.98,16.71774219]
[1730108408473,0.12549,177.01,176.99,11.06744219]
[1730108409376,20.12549,177.04,176.99,11.06744219]
[1730108409572,4.23110338,177.03,176.99,11.06744219]
[1730108409774,0.12549,177.01,176.99,11.06744219]
[1730108410376,25.6484,177.04,176.99,11.06744219]
[1730108410578,4.23091566,177.03,177.01,11.06744219]
[1730108410782,17.30563939,177.06,176.96,0.2]
[1730108410783,0.12549,177.05,177.02,11.06744219]
[1730108410986,4.23085905,177.04,177.02,11.06744219]
[1730108411280,4.23085905,177.03,177.02,11.06744219]
[1730108413288,4.23085905,177.03,177.02,16.71644219]
[1730108415487,0.5903972,177.06,177.02,16.71644219]
[1730108415687,4.22830037,177.05,177.02,5.649]
[1730108415862,0.5903972,177.06,177.04,11.06744219]
[1730108416064,0.5903972,177.06,177.05,11.06744219]
[1730108416679,0.5903972,177.06,177.05,16.71554219]
[1730108420389,0.5903972,177.06,177.05,16.81554219]
[1730108420991,0.5903972,177.06,177.05,11.06744219]
[1730108423293,0.5903972,177.06,176.97,16.1422]
[1730108423294,0.12549,177.05,176.97,16.1422]
[1730108423586,0.12549,177.05,177.01,11.06744219]
[1730108424278,0.12549,177.03,176.95,0.1]
[1730108424483,0.12549,177.03,176.99,11.06744219]
[1730108424677,11.06744219,177.02,176.98,11.06744219]
[1730108424877,11.06744219,177.02,176.98,5.6503]
[1730108425082,16.84173219,177.03,176.98,16.71774219]
[1730108425900,11.06744219,177.02,176.95,0.1]
[1730108426190,11.19293219,177.01,176.94,0.1]
[1730108426375,11.19293219,177.01,176.96,11.06744219]
[1730108426992,0.12549,176.98,176.94,11.06744219]
[1730108428501,5.77559,176.99,176.95,11.06744219]
[1730108430802,16.84303219,176.99,176.94,16.71894219]
[1730108431683,11.06744219,176.98,176.94,16.71894219]
[1730108432002,11.06744219,176.98,176.93,11.06744219]
[1730108443407,16.84303219,176.99,176.94,11.06744219]
[1730108444304,16.84303219,176.99,176.94,16.71874219]
[1730108446786,16.84303219,176.99,176.94,11.06744219]
[1730108447612,16.84303219,176.99,176.9,0.1]
[1730108447613,20.0,177.01,176.95,11.06744219]
[1730108447910,31.06744219,177.01,176.96,11.06744219]
[1730108448311,0.12549,177.0,176.96,11.06744219]
[1730108448717,0.12549,177.0,176.97,16.71804219]
[1730108448917,0.12549,177.0,176.97,11.06744219]
[1730108449214,0.12549,177.0,176.96,11.06744219]
[1730108450217,0.12549,177.0,176.96,16.71814219]
[1730108450895,11.19293219,177.0,176.96,5.6507]
[1730108456605,0.12549,177.0,176.96,11.06744219]
[1730108458704,0.12549,177.0,176.96,16.71824219]
[1730108460316,5.6482,177.05,176.99,11.06744219]
[1730108460616,28.1900972,177.06,177.02,11.06744219]
[1730108461518,0.12549,177.05,177.01,16.71664219]
[1730108461826,16.84113219,177.05,177.0,11.06744219]
[1730108462123,11.06744219,177.01,176.96,11.06744219]
[1730108462702,0.12549,177.01,176.97,11.06744219]
[1730108463898,0.12549,177.01,176.98,11.06744219]
[1730108465730,0.12549,177.01,176.98,16.71774219]
[1730108466500,0.12549,177.01,176.98,5.6503]
[1730108467398,0.12549,177.01,176.97,11.06744219]
[1730108473234,11.19293219,176.98,176.91,5.6525]
[1730108473415,0.12549,176.96,176.91,5.6525]
[1730108473609,0.12549,176.95,176.91,5.6525]
[1730108474625,0.12549,176.95,176.91,16.71994219]
[1730108475611,0.12549,176.95,176.91,11.06744219]
[1730108475812,0.12549,176.95,176.92,11.06744219]
[1730108476728,0.12549,176.95,176.92,16.71944219]
[1730108479939,0.12549,176.95,176.92,5.652]
[1730108480120,0.12549,176.95,176.92,16.71944219]
[1730108480810,5.6503,176.99,176.94,11.06744219]
[1730108481015,5.6503,176.99,176.95,11.06744219]
[1730108481215,0.12549,176.98,176.95,11.06744219]
[1730108482139,0.12549,176.98,176.95,16.71864219]
[1730108482537,33.48234219,177.0,176.95,16.71864219]
[1730108482744,22.4149,177.0,176.95,16.71864219]
[1730108483056,0.12549,176.99,176.95,16.71864219]
[1730108483216,0.12549,176.99,176.95,5.6512]
[1730108484037,0.12549,176.97,176.93,11.06744219]
[1730108485347,0.12549,176.97,176.93,16.71914219]
[1730108486035,0.12549,176.97,176.94,11.06744219]
[1730108489247,0.12549,176.97,176.9,0.1]
[1730108489424,0.12549,176.97,176.94,11.06744219]
[1730108490527,0.12549,176.97,176.93,5.6517]
[1730108490845,0.12549,176.97,176.93,16.71914219]
[1730108495150,0.12549,176.97,176.9,0.1]
[1730108495350,0.12549,176.97,176.93,11.06744219]
[1730108496550,0.12549,176.97,176.93,16.71914219]
[1730108498728,5.77639,176.97,176.93,11.06744219]
[1730108498946,0.12549,176.95,176.91,11.06744219]
[1730108499369,0.12549,176.94,176.9,11.06744219]
[1730108499650,0.12549,176.94,176.89,16.72064219]
[1730108500438,0.12549,176.94,176.89,11.06744219]
[1730108500641,0.12549,176.94,176.9,11.06744219]
[1730108502145,0.12549,176.94,176.9,16.72014219]
[1730108502338,106.5396,177.0,176.9,16.72014219]
[1730108502649,11.06744219,176.96,176.91,11.06744219]
[1730108502954,0.12549,176.95,176.91,11.06744219]
[1730108503542,0.12549,176.95,176.91,16.71974219]
[1730108504932,0.12549,176.95,176.9,11.06744219]
[1730108506352,0.12549,176.95,176.91,5.6525]
[1730108506936,11.19293219,176.95,176.91,5.6525]
[1730108508759,11.19293219,176.95,176.9,5.6529]
[1730108509451,11.06744219,176.94,176.9,5.6529]
[1730108509643,0.12549,176.93,176.88,11.06744219]
[1730108510335,26.46463219,176.93,176.86,5.6541]
[1730108510537,11.06744219,176.9,176.86,5.6541]
[1730108510843,11.19293219,176.91,176.86,16.72154219]
[1730108511545,11.19293219,176.91,176.86,11.06744219]
[1730108511761,0.12549,176.91,176.87,11.06744219]
[1730108513070,0.12549,176.91,176.87,16.72114219]
[1730108515551,15.2717,176.93,176.88,11.06744219]
[1730108515861,0.12549,176.92,176.88,11.06744219]
[1730108517151,0.12549,176.92,176.89,11.06744219]
[1730108517859,0.12549,176.92,176.89,16.72034219]
[1730108519963,0.12549,176.92,176.89,11.06744219]
[1730108520558,0.12549,176.92,176.88,11.06744219]
[1730108521649,0.12549,176.92,176.89,11.06744219]
[1730108521853,0.12549,176.92,176.89,16.72064219]
[1730108522554,11.06744219,176.92,176.84,5.6548]
[1730108522761,0.12549,176.9,176.85,11.06744219]
[1730108523071,0.12549,176.9,176.86,11.06744219]
[1730108523767,0.12549,176.91,176.87,11.06744219]
[1730108524752,0.12549,176.91,176.87,16.72104219]
[1730108528871,0.12549,176.91,176.8,15.9787]
[1730108529174,0.12549,176.9,176.85,11.06744219]
[1730108530061,0.12549,176.9,176.86,5.6541]
[1730108530554,11.19293219,176.9,176.86,5.6541]
[1730108532082,11.19293219,176.9,176.85,11.06744219]
[1730108532255,16.84583219,176.9,176.85,11.06744219]
[1730108532575,15.9351,176.93,176.89,11.06744219]
[1730108532776,11.06744219,176.96,176.91,11.06744219]
[1730108532977,22.1527,176.98,176.93,11.06744219]
[1730108533160,22.1527,176.98,176.94,11.06744219]
[1730108533955,0.12549,176.97,176.94,11.06744219]
[1730108534471,0.12549,176.97,176.94,16.71884219]
[1730108535655,26.77147966,177.0,176.95,11.06744219]
[1730108536456,0.12549,176.99,176.95,11.06744219]
[1730108536881,0.12549,176.99,176.96,11.06744219]
[1730108538855,0.12549,176.99,176.95,11.06744219]
[1730108541981,0.12549,176.99,176.96,11.06744219]
[1730108542362,0.12549,176.99,176.97,11.06744219]
[1730108543484,0.12549,176.99,176.96,11.06744219]
[1730108543678,0.12549,176.99,176.97,11.06744219]
[1730108543875,0.12549,176.99,176.97,16.71784219]
[1730108544180,20.0,177.01,176.97,16.71784219]
[1730108544354,0.12549,177.0,176.97,16.71784219]
[1730108545285,0.12549,177.0,176.96,11.06744219]
[1730108545465,0.12549,176.98,176.94,11.06744219]
[1730108545866,5.77589,176.98,176.94,11.06744219]
[1730108546381,5.6499,177.0,176.96,11.06744219]
[1730108546580,5.6499,177.0,176.97,11.06744219]
[1730108547586,0.12549,176.99,176.97,11.06744219]
[1730108547881,0.12549,176.99,176.98,11.06744219]
[1730108550384,0.12549,176.99,176.97,11.06744219]
[1730108550588,0.12549,176.99,176.98,11.06744219]
[1730108551876,0.12549,176.99,176.97,11.06744219]
[1730108553063,5.6494,177.01,176.97,11.06744219]
[1730108553064,5.77479,177.01,176.97,11.06744219]
[1730108554180,5.77479,177.01,176.96,16.71834219]
[1730108554778,5.77479,177.01,176.97,11.06744219]
[1730108555984,5.77479,177.01,176.96,11.06744219]
[1730108556370,16.84223219,177.01,176.96,11.06744219]
[1730108556571,11.06744219,177.0,176.95,11.06744219]
[1730108558806,11.06744219,176.98,176.87,23.876884]
[1730108558975,0.12549,176.96,176.88,5.6535]
[1730108559296,0.12549,176.96,176.92,11.06744219]
[1730108560080,5.77649,176.96,176.92,11.06744219]
[1730108560385,5.77649,176.96,176.92,16.71964219]
[1730108561185,16.84393219,176.96,176.91,11.06744219]
[1730108562699,16.84393219,176.96,176.92,5.6522]
[1730108562882,5.77649,176.96,176.92,16.71964219]
[1730108564195,0.12549,176.96,176.92,16.71964219]
[1730108564995,16.42384211,176.97,176.92,16.71964219]
[1730108565309,16.71814219,176.97,176.92,11.06744219]
[1730108565605,16.71744219,176.99,176.94,11.06744219]
[1730108566098,0.12549,176.98,176.94,11.06744219]
[1730108566305,11.06744219,176.97,176.92,11.06744219]
[1730108567007,16.71814219,176.97,176.92,16.71954219]
[1730108567698,11.06744219,176.96,176.92,5.6521]
[1730108569005,11.06744219,176.96,176.9,11.06744219]
[1730108569006,11.28893029,176.96,176.9,11.06744219]
[1730108569197,11.28893029,176.96,176.91,11.06744219]
[1730108571388,11.28893029,176.96,176.9,5.6528]
[1730108571389,0.12549,176.93,176.9,5.6528]
[1730108571595,11.06744219,176.93,176.9,5.6528]
[1730108571897,11.06744219,176.91,176.86,11.06744219]
[1730108572897,11.06744219,176.91,176.87,5.6538]
[1730108577208,11.06744219,176.9,176.87,5.6538]
[1730108577398,5.6521,176.93,176.87,5.6538]
[1730108577599,11.06744219,176.9,176.87,5.6538]
[1730108578711,11.06744219,176.91,176.87,5.6538]
[1730108579209,6.6860881,176.96,176.88,11.06744219]
[1730108579411,11.06744219,176.94,176.89,11.06744219]
[1730108580215,0.12549,176.93,176.89,11.06744219]
[1730108580395,11.06744219,176.94,176.9,5.6529]
[1730108581412,0.12549,176.93,176.9,5.6529]
[1730108581619,0.12549,176.91,176.88,5.6533]
[1730108581795,11.06744219,176.91,176.88,5.6533]
[1730108582295,11.06744219,176.9,176.88,5.6533]
[1730108582486,11.06744219,176.9,176.85,11.06744219]
[1730108582692,11.06744219,176.91,176.86,11.06744219]
[1730108583913,11.06744219,176.91,176.87,5.6538]
[1730108592005,11.06744219,176.9,176.82,16.5092]
[1730108592220,11.06744219,176.86,176.83,5.6551]
[1730108593328,11.06744219,176.86,176.81,11.06744219]
[1730108595822,11.19293219,176.87,176.82,11.06744219]
[1730108597314,11.19293219,176.87,176.83,5.6551]
[1730108598431,11.19293219,176.87,176.82,11.06744219]
[1730108599824,6.6285,176.9,176.85,11.06744219]
[1730108600027,17.69594219,176.9,176.85,11.06744219]
[1730108600323,0.12549,176.89,176.85,11.06744219]
[1730108601105,11.19293219,176.89,176.84,11.06744219]
[1730108602533,0.12549,176.89,176.85,16.72194219]
[1730108604439,11.06744219,176.9,176.86,11.06744219]
[1730108605336,6.2288,176.94,176.89,11.06744219]
[1730108605520,6.2288,176.94,176.9,11.06744219]
[1730108605711,0.12549,176.93,176.9,11.06744219]
[1730108606525,0.12549,176.93,176.9,16.72014219]
[1730108608406,0.12549,176.93,176.9,11.06744219]
[1730108608613,0.12549,176.93,176.91,11.06744219]
[1730108609130,0.12549,176.93,176.89,11.06744219]
[1730108610730,0.12549,176.93,176.89,16.72034219]
[1730108612133,0.12549,176.93,176.9,11.06744219]
[1730108613142,11.06744219,176.92,176.88,11.06744219]
[1730108613432,11.06744219,176.89,176.84,11.06744219]
[1730108613829,11.06744219,176.89,176.83,11.06744219]
[1730108613830,0.12549,176.87,176.83,11.06744219]
[1730108614027,11.19293219,176.87,176.83,11.06744219]
[1730108614223,11.19293219,176.87,176.77,6.0367]
[1730108614430,0.12549,176.85,176.81,11.06744219]
[1730108614824,11.19293219,176.84,176.76,16.4582]
[1730108615137,11.19293219,176.83,176.78,11.06744219]
[1730108615336,11.19293219,176.83,176.77,5.657]
[1730108615631,11.06744219,176.82,176.77,16.72444219]
[1730108616535,11.06744219,176.82,176.77,11.06744219]
[1730108619841,0.12549,176.83,176.77,11.06744219]
[1730108620034,6.1361,176.88,176.82,11.06744219]
[1730108620222,6.1361,176.88,176.84,11.06744219]
[1730108620422,30.0,176.85,176.84,11.06744219]
[1730108620622,0.12549,176.87,176.83,11.06744219]
[1730108621025,15.3771,176.89,176.85,11.06744219]
[1730108621417,0.12549,176.88,176.85,11.06744219]
[1730108622117,0.12549,176.88,176.85,16.72184219]
[1730108623437,6.4766,176.92,176.87,11.06744219]
[1730108623642,23.19634219,176.92,176.87,11.06744219]
[1730108624141,0.12549,176.91,176.87,11.06744219]
[1730108624522,0.12549,176.91,176.87,16.72124219]
[1730108624523,11.19293219,176.91,176.87,16.72124219]
[1730108626461,11.19293219,176.91,176.87,5.6538]
[1730108626741,11.19293219,176.91,176.87,16.72124219]
[1730108627342,0.12549,176.91,176.87,16.72124219]
[1730108628725,0.12549,176.91,176.88,11.06744219]
[1730108629041,5.77819,176.91,176.88,11.06744219]
[1730108631629,0.12549,176.91,176.88,16.72064219]
[1730108631826,0.12549,176.91,176.88,11.06744219]
[1730108632463,0.12549,176.91,176.87,11.06744219]
[1730108633938,5.77809,176.91,176.87,11.06744219]
[1730108637441,0.12549,176.91,176.87,11.06744219]
[1730108637652,0.12549,176.91,176.88,11.06744219]
[1730108638748,5.77809,176.91,176.88,11.06744219]
[1730108640050,5.6521,176.93,176.88,16.72084219]
[1730108641670,0.2214881,176.95,176.92,11.06744219]
[1730108641964,0.2214881,176.95,176.93,11.06744219]
[1730108643047,0.2214881,176.95,176.94,11.06744219]
[1730108643252,0.2214881,176.95,176.87,23.776884]
[1730108643441,0.2214881,176.95,176.93,11.06744219]
[1730108644052,0.2214881,176.95,176.94,11.06744219]
[1730108654157,0.2214881,176.95,176.93,11.06744219]
[1730108658059,0.2214881,176.95,176.94,11.06744219]
[1730108658563,0.2214881,176.95,176.92,5.652]
[1730108658763,0.2214881,176.95,176.86,20.2]
[1730108658764,0.2214881,176.95,176.93,11.06744219]
[1730108658983,0.2214881,176.95,176.94,11.06744219]
[1730108664479,0.2214881,176.95,176.94,16.71904219]
[1730108666376,0.2214881,176.95,176.87,6.4561]
[1730108666684,0.2214881,176.95,176.93,11.06744219]
[1730108667974,0.2214881,176.95,176.93,16.71914219]
[1730108668364,0.2214881,176.95,176.93,11.06744219]
[1730108668560,0.2214881,176.95,176.92,11.06744219]
[1730108670164,0.2214881,176.95,176.94,11.06744219]
[1730108672171,0.2214881,176.95,176.94,16.71904219]
[1730108673195,0.2214881,176.95,176.94,80.98881095]
[1730108677380,0.2214881,176.95,176.94,105.11667495]
[1730108677568,0.2214881,176.95,176.94,49.679464]
[1730108677772,0.2214881,176.95,176.94,80.98881095]
[1730108678893,0.2214881,176.95,176.94,15.85904219]
[1730108681204,0.2214881,176.95,176.94,4.7916]
[1730108681487,0.2214881,176.95,176.94,15.85904219]